Cogmind - Beta 9.3 @@@ ROGUE MODE // 2020.01.01 @ 09:32:10 // Winter2019/RPGLIKE Player: BadAss McGhee Result: Destroyed by as-18965 with Assembled Rifle Performance ------------- Evolutions (0) 0 Regions Visited (2) 400 Robots Destroyed (7) 35 Value Destroyed (185) 185 Prototype IDs (0) 0 Alien Tech Used (0) 0 Bonus (0) 0 TOTAL SCORE: 620 Bonus ------- None Cogmind --------- Core Integrity 0/600 Matter 292/350 Energy 125/125 System Corruption 0% Temperature Cool (0) Movement Rolling (90) Location -10/Mines Parts ------- > --- POWER (1) -------- Light Ion Engine > --- PROPULSION (2) --- Wheel Compact Wheel > --- UTILITY (2) ------ Signal Interpreter Improved Terrain Scanner > --- WEAPON (2) ------- Light Assault Rifle Light Assault Rifle > --- INVENTORY (2) ---- Core Shielding Light Assault Rifle Peak State ------------ > --- POWER ------------ Light Ion Engine > --- PROPULSION ------- Wheel Compact Wheel > --- UTILITY ---------- Signal Interpreter Improved Terrain Scanner > --- WEAPON ----------- Light Assault Rifle Light Assault Rifle > --- INVENTORY -------- Core Shielding [Rating: 8] Favorites ----------- Power Light Ion Engine Engine Light Ion Engine Propulsion Wheel Wheel Wheel Utility Signal Interpreter Device Improved Terrain Scanner Processor Signal Interpreter Protection Core Shielding Weapon Light Assault Rifle Ballistic Gun Light Assault Rifle Build | -11 -10 -10 ------- Run | Scr Mat Min Slots Evolved 3 | 3 . . Power . | . . . Propulsion 1 | 1 . . Utility 1 | 1 . . Weapon 1 | 1 . . Parts Attached 10 | 5 5 . Power 1 | 1 . . Engine 1 | 1 . . Core . | . . . Reactor . | . . . Propulsion 2 | 2 . . Treads . | . . . Leg . | . . . Wheel 2 | 2 . . Hover . | . . . Flight . | . . . Utility 3 | . 3 . Device 1 | . 1 . Storage . | . . . Processor 1 | . 1 . Hackware . | . . . Protection 1 | . 1 . Artifact . | . . . Weapon 4 | 2 2 . Energy Gun . | . . . Energy Cannon . | . . . Ballistic Gun 4 | 2 2 . Ballistic Cannon . | . . . Launcher . | . . . Special Weapon . | . . . Impact Weapon . | . . . Slashing Weapon . | . . . Piercing Weapon . | . . . Special Melee Weapon . | . . . Unidentified Prototypes . | . . . Parts Lost . | . . . Power . | . . . Propulsion . | . . . Utility . | . . . Weapon . | . . . Highest Loss Streak . | . . . Average Slot Usage (%) 97 | . 97 100 Engine 14 | . 14 14 Wheel 28 | . 28 28 Device 9 | . 9 14 Processor 12 | . 12 14 Protection 3 | . 3 . Ballistic Gun 28 | . 28 28 Naked Turns . | . . . Heaviest Build 6 | 5 6 6 Greatest Support 26 | 26 26 26 Greatest Overweight (x) . | . . . Average Overweight (x) . | . . . Largest Inventory Capacity 2 | 2 2 2 Average Capacity 2 | 2 2 2 Most Carried 2 | . 2 2 Average Carried . | . . 2 Final Capacity 2 | 2 2 2 Final Carried 2 | . 2 2 Class Distribution -------------------- 100% | Mutant Dominant Class ---------------- Mutant | -10/Materials Mutant | -10/Mines Resources | -11 -10 -10 ----------- Run | Scr Mat Min Matter Collected 354 | 286 68 . Remotely . | . . . Salvage Created 68 | . 68 . Parts 15 | . 15 . Haulers Intercepted . | . . . Recyclers Shooed . | . . . Parts Field Recycled . | . . . Retrieved Matter . | . . . Parts Self-Destructed . | . . . Prevented . | . . . Kills | -11 -10 -10 ------- Run | Scr Mat Min Combat Hostiles Destroyed 7 | . 6 1 Guns 7 | . 6 1 Classes Destroyed 3 | . 2 1 Swarmer 3 | . 3 . Grunt 3 | . 3 . Demolisher 1 | . . 1 Best Kill Streak 5 | . 5 1 Combat Bots Only 5 | . 5 1 Max Kills in Single Turn 1 | . 1 1 Gunslinging . | . . . Exploded . | . . . Melee . | . . . Uniques/NPCs Destroyed . | . . . Combat | -11 -10 -10 -------- Run | Scr Mat Min Damage Taken 1004 | . 467 537 Core 813 | . 365 448 Absorbed by Shields . | . . . Redirected to Core 624 | . 320 304 Core Remaining (%) 100 | 100 . . Volleys Fired 31 | . 23 8 Largest 2 | . 2 2 Hottest 40 | . 40 40 Shots Fired 62 | . 46 16 Gun 62 | . 46 16 Cannon . | . . . Launcher . | . . . Special . | . . . Kinetic 62 | . 46 16 Thermal . | . . . Explosive . | . . . Electromagnetic . | . . . Robot Hit Streak 8 | . 8 4 Robot Miss Streak 4 | . 4 1 Penetration Max . | . . . Secondary Targets 1 | . 1 . Max Gunslinging Chain 1 | . 1 . Shots Hit Robots 45 | . 34 11 Core Hits 19 | . 12 7 Critical Hits 1 | . 1 . Critical Kills . | . . . Critical Parts Destroyed 1 | . 1 . Melee Attacks . | . . . Impact . | . . . Slashing . | . . . Piercing . | . . . Sneak Attacks . | . . . Combat Hostiles . | . . . Follow-up Attacks . | . . . Damage Inflicted 318 | . 244 74 Guns 318 | . 244 74 Cannons . | . . . Explosions . | . . . Melee . | . . . Ramming . | . . . Kinetic 318 | . 244 74 Thermal . | . . . Explosive . | . . . Electromagnetic . | . . . Impact . | . . . Slashing . | . . . Piercing . | . . . Highest Corruption . | . . . Average Corruption . | . . . Corruption Purged . | . . . Overload Shots . | . . . Overflow Damage . | . . . Projectiles . | . . . Explosions . | . . . Melee . | . . . Knockbacks . | . . . Impact . | . . . Kinetic . | . . . Secondary . | . . . Self-Inflicted Damage . | . . . Shots . | . . . Rammed . | . . . Targets Rammed . | . . . Kicked . | . . . Crushed . | . . . Highest Temperature 12 | . 12 . Average Temperature 6 | . 6 . Received Heat Transfer 78 | . 78 . Siege Activations . | . . . Robots Corrupted . | . . . Combat Hostiles . | . . . Parts Fried . | . . . Impact Corruptions . | . . . Robots Melted . | . . . Combat Hostiles . | . . . Parts Melted . | . . . Heat Transferred . | . . . Parts Sabotaged . | . . . Parts Stolen . | . . . Parts Stripped . | . . . Power Chain Reactions . | . . . Missiles Intercepted . | . . . Alert | -11 -10 -10 ------- Run | Scr Mat Min Peak Influence 181 | . 181 115 Average Influence 54 | . 57 86 Maximum Alert Level . | . . . Low Security (%) 100 | 100 100 100 Level 1 . | . . . Level 2 . | . . . Level 3 . | . . . Level 4 . | . . . Level 5 . | . . . High Security . | . . . Max Security . | . . . Squads Dispatched 3 | . 3 . Investigation 1 | . 1 . Extermination . | . . . Reinforcement 2 | . 2 . Assault . | . . . Garrison . | . . . Intercept . | . . . Construction Impeded . | . . . Haulers Reinforced . | . . . Stealth | -11 -10 -10 --------- Run | Scr Mat Min Distress Signals 1 | . 1 . Communications Jammed . | . . . Distress Signals . | . . . Times Spotted 32 | . 13 19 Peak Tracking Total 15 | . 6 15 Tactical Retreats 2 | . 2 . Traps | -11 -10 -10 ------- Run | Scr Mat Min Traps Triggered . | . . . Indirectly . | . . . Trap Hack Attempts . | . . . Triggered . | . . . Disarmed . | . . . Reprogrammed . | . . . Reused . | . . . Traps Extracted . | . . . Installed . | . . . Triggered . | . . . Machines | -11 -10 -10 ---------- Run | Scr Mat Min Machines Disabled . | . . . Max in Single Turn . | . . . Machines Sabotaged . | . . . Garrisons Compromised . | . . . Overloaded Fab Kills . | . . . Fab Network Shutdowns . | . . . Hacking | -11 -10 -10 --------- Run | Scr Mat Min Machines Accessed 4 | . 4 . Terminals 4 | . 4 . Fabricators . | . . . Repair Stations . | . . . Recycling Units . | . . . Scanalyzers . | . . . Garrison Access . | . . . Total Hacks 7 | . 7 . Successful 4 | . 4 . Failed 3 | . 3 . Catastrophic 2 | . 2 . Database Lockouts . | . . . Manual . | . . . Terminals 7 | . 7 . Fabricators . | . . . Repair Stations . | . . . Recycling Units . | . . . Scanalyzers . | . . . Garrison Access . | . . . Terminal Hacks 4 | . 4 . Robot Analysis 1 | . 1 . Locate Traps 1 | . 1 . Surveillance Status 1 | . 1 . Zone Layout 1 | . 1 . Fabricator Hacks . | . . . Repair Station Hacks . | . . . Recycling Unit Hacks . | . . . Scanalyzer . | . . . Garrison Access Hacks . | . . . Unauthorized Hacks . | . . . Terminals . | . . . Fabricators . | . . . Repair Stations . | . . . Recycling Units . | . . . Scanalyzers . | . . . Garrison Access . | . . . Data Cores Recovered . | . . . Used . | . . . Hacking Detections 2 | . 2 . Full Trace Events 2 | . 2 . Feedback Events . | . . . Feedback Blocked . | . . . Robot Schematics Acquired . | . . . Robots Built . | . . . Matter . | . . . Time . | . . . Total Robot Build Rating . | . . . Part Schematics Acquired . | . . . Parts Built . | . . . Matter . | . . . Time . | . . . Total Part Build Rating . | . . . Parts Repaired . | . . . Time . | . . . Parts Recycled . | . . . Recycled Matter . | . . . Retrieved Matter . | . . . Retrieved Components . | . . . Parts Scanalyzed . | . . . Part Schematics Acquired . | . . . Parts Damaged . | . . . Bothacking | -11 -10 -10 ------------ Run | Scr Mat Min Used RIF Installer . | . . . Robots Hacked . | . . . Non-combat . | . . . Combat . | . . . Robot Hacks Applied . | . . . Relay Couplers Released . | . . . Robots Rewired . | . . . Allies Hacked . | . . . Hacks Repelled . | . . . Allies | -11 -10 -10 -------- Run | Scr Mat Min Total Allies . | . . . Largest Group . | . . . Highest-Rated Group . | . . . Highest-Rated Ally . | . . . Total Orders . | . . . Ally Attacks . | . . . Total Damage . | . . . Kills . | . . . Allies Corrupted . | . . . Allies Melted . | . . . Intel | -11 -10 -10 ------- Run | Scr Mat Min Robot Analysis Total 1 | . 1 . Derelict Logs Recovered . | . . . Drone Launches . | . . . Drone Recoveries . | . . . Exploration | -11 -10 -10 ------------- Run | Scr Mat Min Turns Passed 422 | 33 364 25 Spaces Moved 334 | 34 295 5 Core 11 | 11 . . Treads . | . . . Legs . | . . . Wheels 323 | 23 295 5 Hover . | . . . Flight . | . . . Fastest Speed 50 | 50 90 90 Average Speed 88 | 76 90 90 Slowest Speed 90 | 90 90 90 Overloaded Moves . | . . . Propulsion Burnouts . | . . . Robots Hopped . | . . . Cave-ins Triggered . | . . . Exploration Rate (%) 25 | 4 66 7 Regions Visited 2 Branch Regions 1 Pre-discovered Areas . | . . . Known Exits Taken 1 | . 1 . Unknown Exits Taken 1 | 1 . . Scrap Searched . | . . . Spaces Dug . | . . . Terrain Destroyed . | . . . Melee . | . . . Projectile . | . . . AOE . | . . . Actions | -11 -10 -10 --------- Run | Scr Mat Min Total 406 | 38 355 13 Wait 22 | . 22 . Move 332 | 33 294 5 Hop . | . . . Pick Up . | . . . Fast Attach 8 | 5 3 . Attach . | . . . Detach 1 | . 1 . Swap 2 | . 2 . Drop 1 | . 1 . Fire 31 | . 23 8 Melee . | . . . Ram . | . . . Kick . | . . . Crush . | . . . Escape Stasis . | . . . Rewire . | . . . Trap . | . . . Miscellaneous 9 | . 9 . Route ------- -11/Scrapyard -10/Materials (discovered 2 exits: *Mat / *Min) -10/Mines (discovered 1 exit: *Mat) History --------- Turn | Location | Event 1 | -11/Scrapyard | Upgraded with Propulsion slot (x1) 1 | -11/Scrapyard | Upgraded with Utility slot (x1) 1 | -11/Scrapyard | Upgraded with Weapon slot (x1) 5 | -11/Scrapyard | Discovered new exit (range 14) 34 | -11/Scrapyard | Entered Materials 216 | -10/Materials | Discovered new exit (range 7) 228 | -10/Materials | Identified exit to Materials 307 | -10/Materials | Build established: Mutant 379 | -10/Materials | Discovered new exit (range 7) 397 | -10/Materials | Identified exit to Mines 398 | -10/Materials | Entered Mines 399 | -10/Mines | Assembled infested the area 399 | -10/Mines | Discovered exit to Materials (range 5) 405 | -10/Mines | Core integrity fell below 50% 413 | -10/Mines | Core integrity fell below 20% 423 | -10/Mines | Destroyed by as-18965 with Assembled Rifle Last Messages --------------- 00399_ ALERT: Infestation in the mines, dispatching Demolisher response squad. 00399_ EXIT=FOUND: MATERIALS 00400_ C-30 ARC bursts open, deploying its payload. 00400_ D-53 Grenadier unfolds itself. 00400_ S-10 Pest destroyed. 00406_ The unstable cave ceiling collapses. 00410_ S-10 Pest destroyed. 00412_ as-13927 destroyed. 00413_ The unstable cave ceiling collapses. 00415_ as-51402 destroyed. 00417_ The unstable cave ceiling collapses. 00417_ as-79683 destroyed. 00419_ as-43727 destroyed. 00419_ as-77453 destroyed. 00419_ as-25216 destroyed. 00419_ D-53 Grenadier destroyed. 00421_ The unstable cave ceiling collapses. 00421_ D-53 Grenadier destroyed. 00422_ The unstable cave ceiling collapses. Map ----- +----------------------------------------------------+ | ?????????????????????????????????????? | | ?????????????????????????????????????? | | ?????????????????????????????????????? | | ?????????????????????????????????????? | | ?????????????????????????????????????? | | ?????????????????????????????????????? | | ?????????????????????????????????????? | | ?????????????????????????????????????? | | ?????????????????????????????????????? | | ?????????????????????????????????????? | | ?????????????????????????????????????? | | ???????????????#?????????????????????? | | ?????????????????????????????????????? | | ?????????????????????????????????????? | | ??#??????????????????????????????????? | | ??????????##?#???????????????????????? | | ????????### # #??????????????????????? | | ???????## ##?????????????????????? | | ???????? aaa ##????????????????????? | | ???????## ##???????????????????? | | ???????# a ????????????????????? | | ???????# a ##???#???????????????? | | ???????# #???????????????????? | | ???????# aa #?????????#?????????? | | ????#??# ##??????????????????? | | ????????# %@ #??????????????????? | | ????????# a% # #??????????????????? | | ????????## # #??????????????????? | | ????????## # #??????????????????? | | ????????# # #??????????????????? | | ???????# % #??????????????????? | | ????? ?????????????????? | | ????#g < ###????????????????? | | #???#g #??????????????????? | | ????#### #??????????????????? | | ??#????# ##???#?????????????? | | ???????############??????????????????? | | ?????????????????????????????????????? | | ?????????????????????????????????????? | | | | | | | | | | | | | | | | | | | | | | | +----------------------------------------------------+ Best States ------------- Heat Dissipation 25 Energy Generation 10 Energy Capacity 125 Matter Stores 336 Matter Capacity 350 Sight Range 17 Robot Scan Range 2 Terrain Scan Range 16 Terrain Scan Density 10 Core Shielding 20 Evasion (%) 50 Item Schematics ----------------- None Robot Schematics ------------------ None Fabricated ------------ Nothing Alien Tech Used ----------------- None Achievements -------------- None Challenges ------------ None RPGLIKE | -11 -10 -10 --------- Run | Scr Mat Min Levels Raised . | . . . XP Earned 4385 | 3000 735 650 XP Spent 3000 | 3000 . . Upgrades 9 | 9 . . Propulsion Slot 1 | 1 . . Utility Slot 1 | 1 . . Weapon Slot 1 | 1 . . Matter Storage 1 | 1 . . Inventory Capacity 2 | 2 . . Sight Range 1 | 1 . . Sensor Range 1 | 1 . . Ranged Accuracy 1 | 1 . . Protomatter Created 107 | . 113 -6 Integrity Restored 203 | . 203 . Core 203 | . 203 . Protomatter Decayed 14 | . 14 . Game ------ Seed GammaGravitonProcessor Manual? 0 Play Time 00:07:25 Cumulative 65.7 hours Start 2020.01.01 @ 09:25:16 End 2020.01.01 @ 09:32:10 Sessions 1 Manual Loads 0 Difficulty Rogue Special Mode Winter2019/RPGLIKE Game No. 82 Rogue 82 Adventurer 0 Explorer 0 Win Type - Total 0 Types 0/0/0/0/0/0/0 Lore% 11 Gallery% 30 Achievement% 20 Wizard Run 0 Options --------- ASCII 0 Keyboard 0 Movement Mouse Keybinds 0 Fullscreen 1 Font 18/SmallcapsGlow Map View 76x50 Tactical HUD 1 Map Filters NONE Filters NONE Steam 1 RUN: 10f4c28d-a1e0-42e6-80a8-7c923f21f0a9